[Event "Early-Titled-Tuesday-Blitz-May-28-2024"]
[Site "Chess.com"]
[Date "2024.05.28"]
[Round "10"]
[White "NiranjanNavalgund"]
[Black "Yaacovn"]
[Result "1-0"]
[WhiteElo "2524"]
[BlackElo "2851"]
[TimeControl "180+1"]
[EndTime "9:58:24 PDT"]
[Termination "NiranjanNavalgund won by resignation"]

1. d4 {[%clk 0:03:00.9]} 1... Nf6 {[%clk 0:02:43.5]} 2. c4 {[%clk 0:02:59.1]}
2... e5 {[%clk 0:02:43]} 3. dxe5 {[%clk 0:02:58.7]} 3... Ne4 {[%clk 0:02:42.7]}
4. Qc2 {[%clk 0:02:57.5]} 4... Bb4+ {[%clk 0:02:41.7]} 5. Nd2 {[%clk 0:02:57.3]}
5... d5 {[%clk 0:02:41.6]} 6. Nf3 {[%clk 0:02:55.2]} 6... Bf5 {[%clk 0:02:41.5]}
7. Qb3 {[%clk 0:02:51.5]} 7... Bxd2+ {[%clk 0:02:34.5]} 8. Nxd2 {[%clk
0:02:49.8]} 8... Nd7 {[%clk 0:02:14.6]} 9. cxd5 {[%clk 0:02:44.6]} 9... O-O
{[%clk 0:02:12.1]} 10. Qf3 {[%clk 0:02:30.9]} 10... Nxd2 {[%clk 0:01:43.6]} 11.
Bxd2 {[%clk 0:02:25.8]} 11... Bg6 {[%clk 0:01:43.6]} 12. Bc3 {[%clk 0:02:25.4]}
12... Qe7 {[%clk 0:01:43]} 13. Qg3 {[%clk 0:02:23]} 13... Nb6 {[%clk 0:01:39.8]}
14. Rd1 {[%clk 0:02:16.2]} 14... Rad8 {[%clk 0:01:38.9]} 15. d6 {[%clk
0:02:16.2]} 15... cxd6 {[%clk 0:01:36.3]} 16. exd6 {[%clk 0:02:17.1]} 16... Qe6
{[%clk 0:01:36.2]} 17. e3 {[%clk 0:02:13.3]} 17... Qxa2 {[%clk 0:01:30.4]} 18.
Be2 {[%clk 0:02:13]} 18... Na4 {[%clk 0:01:27.8]} 19. Qe5 {[%clk 0:02:10.5]}
19... Nxc3 {[%clk 0:01:25.2]} 20. Qxc3 {[%clk 0:02:11.4]} 20... Rc8 {[%clk
0:01:23.2]} 21. Qa3 {[%clk 0:02:09.9]} 21... Qxa3 {[%clk 0:01:20.3]} 22. bxa3
{[%clk 0:02:10.8]} 22... Rfd8 {[%clk 0:01:19.2]} 23. Bf3 {[%clk 0:02:10.7]}
23... b6 {[%clk 0:01:11]} 24. O-O {[%clk 0:02:11.1]} 24... Kf8 {[%clk
0:01:10.6]} 25. Rd4 {[%clk 0:02:10.9]} 25... Rc3 {[%clk 0:01:07.6]} 26. a4
{[%clk 0:02:10.4]} 26... Rd3 {[%clk 0:01:01.9]} 27. Rd1 {[%clk 0:02:08.8]} 27...
Rxd1+ {[%clk 0:01:00.2]} 28. Rxd1 {[%clk 0:02:07.1]} 28... Bc2 {[%clk
0:00:58.4]} 29. Rd4 {[%clk 0:02:07]} 29... f6 {[%clk 0:00:58]} 30. Bc6 {[%clk
0:02:06.5]} 30... Bb3 {[%clk 0:00:56.2]} 31. f4 {[%clk 0:02:01]} 31... Kf7
{[%clk 0:00:55.6]} 32. Rd3 {[%clk 0:01:43.3]} 32... Bc4 {[%clk 0:00:45.7]} 33.
Rc3 {[%clk 0:01:39.2]} 33... Be6 {[%clk 0:00:33.8]} 34. Rd3 {[%clk 0:01:36.3]}
34... Bf5 {[%clk 0:00:28.2]} 35. e4 {[%clk 0:01:34.9]} 35... Bd7 {[%clk
0:00:22.5]} 36. Bd5+ {[%clk 0:01:34.2]} 36... Be6 {[%clk 0:00:19.9]} 37. Bc6
{[%clk 0:01:28.4]} 37... Bd7 {[%clk 0:00:19.1]} 38. Bd5+ {[%clk 0:01:19.7]}
38... Be6 {[%clk 0:00:17.7]} 39. e5 {[%clk 0:01:01.5]} 39... fxe5 {[%clk
0:00:16.7]} 40. fxe5 {[%clk 0:01:02.4]} 40... Bxd5 {[%clk 0:00:16.9]} 41. Rxd5
{[%clk 0:01:03]} 41... Ke6 {[%clk 0:00:14.6]} 42. Rb5 {[%clk 0:01:03.6]} 42...
Rc8 {[%clk 0:00:14.7]} 43. Kf2 {[%clk 0:01:02.5]} 43... Rc2+ {[%clk 0:00:14.5]}
44. Kf3 {[%clk 0:01:02.9]} 44... Ra2 {[%clk 0:00:14.1]} 45. a5 {[%clk
0:00:53.4]} 45... bxa5 {[%clk 0:00:04.7]} 46. Ke4 {[%clk 0:00:49.2]} 46... Ra4+
{[%clk 0:00:03.2]} 47. Kd3 {[%clk 0:00:48.8]} 47... Ra1 {[%clk 0:00:03]} 48. Kd2
{[%clk 0:00:47.2]} 48... a4 {[%clk 0:00:03.1]} 49. Ra5 {[%clk 0:00:46.8]} 49...
g6 {[%clk 0:00:01.7]} 50. Rxa7 {[%clk 0:00:45.8]} 50... a3 {[%clk 0:00:02.2]}
51. Re7+ {[%clk 0:00:43]} 51... Kf5 {[%clk 0:00:01]} 52. d7 {[%clk 0:00:43.4]}
52... a2 {[%clk 0:00:01.5]} 53. d8=Q {[%clk 0:00:41]} 53... Rd1+ {[%clk
0:00:01.8]} 54. Kxd1 {[%clk 0:00:41.4]} 54... a1=Q+ {[%clk 0:00:02.4]} 55. Ke2
{[%clk 0:00:41.8]} 55... Qa6+ {[%clk 0:00:02.3]} 56. Qd3+ {[%clk 0:00:41.1]} 1-0

[Event "Early-Titled-Tuesday-Blitz-May-28-2024"]
[Site "Chess.com"]
[Date "2024.05.28"]
[Round "10"]
[White "Flaccidmoves"]
[Black "chess_blitz00"]
[Result "0-1"]
[WhiteElo "2477"]
[BlackElo "2335"]
[TimeControl "180+1"]
[EndTime "9:58:25 PDT"]
[Termination "chess_blitz00 won by checkmate"]

1. d4 {[%clk 0:03:00.9]} 1... c5 {[%clk 0:02:57.8]} 2. d5 {[%clk 0:03:00.6]}
2... e6 {[%clk 0:02:57.7]} 3. c4 {[%clk 0:02:59.7]} 3... Nf6 {[%clk 0:02:58.4]}
4. Nc3 {[%clk 0:02:59.2]} 4... d6 {[%clk 0:02:58.4]} 5. e4 {[%clk 0:02:57.3]}
5... Be7 {[%clk 0:02:59.1]} 6. Nf3 {[%clk 0:02:53.7]} 6... O-O {[%clk
0:02:59.4]} 7. Be2 {[%clk 0:02:52.7]} 7... Re8 {[%clk 0:03:00]} 8. O-O {[%clk
0:02:52]} 8... exd5 {[%clk 0:03:00.3]} 9. cxd5 {[%clk 0:02:49.6]} 9... Bf8
{[%clk 0:03:00.7]} 10. Nd2 {[%clk 0:02:47.9]} 10... Bd7 {[%clk 0:02:59]} 11. a4
{[%clk 0:02:46.1]} 11... Na6 {[%clk 0:02:58.4]} 12. Re1 {[%clk 0:02:34.4]} 12...
Nc7 {[%clk 0:02:57.2]} 13. Bf1 {[%clk 0:02:26.9]} 13... b6 {[%clk 0:02:56]} 14.
Nc4 {[%clk 0:02:25]} 14... Rb8 {[%clk 0:02:48.9]} 15. Bf4 {[%clk 0:02:24]} 15...
Bc8 {[%clk 0:02:41.7]} 16. h3 {[%clk 0:02:07.5]} 16... Ba6 {[%clk 0:02:25.3]}
17. Bh2 {[%clk 0:02:01.1]} 17... Bxc4 {[%clk 0:02:24.3]} 18. Bxc4 {[%clk
0:02:02]} 18... a6 {[%clk 0:02:24.9]} 19. Qd3 {[%clk 0:01:49]} 19... b5 {[%clk
0:02:19.7]} 20. axb5 {[%clk 0:01:48.5]} 20... axb5 {[%clk 0:02:20.6]} 21. Nxb5
{[%clk 0:01:44.1]} 21... Nxb5 {[%clk 0:02:20.9]} 22. Bxb5 {[%clk 0:01:45]} 22...
Rxe4 {[%clk 0:02:19.1]} 23. Rxe4 {[%clk 0:01:36.5]} 23... Nxe4 {[%clk 0:02:20]}
24. Bc6 {[%clk 0:01:26.6]} 24... Nf6 {[%clk 0:02:20.1]} 25. Bf4 {[%clk
0:01:02.1]} 25... Rxb2 {[%clk 0:02:15.6]} 26. Bg5 {[%clk 0:01:01.2]} 26... h6
{[%clk 0:02:15.1]} 27. Bh4 {[%clk 0:01:00.8]} 27... g5 {[%clk 0:02:03.8]} 28.
Bg3 {[%clk 0:01:00.6]} 28... Nh5 {[%clk 0:01:56.2]} 29. Ra7 {[%clk 0:00:57.2]}
29... Nxg3 {[%clk 0:01:47.5]} 30. fxg3 {[%clk 0:00:51.1]} 30... Qf6 {[%clk
0:01:43]} 31. Qf3 {[%clk 0:00:44.4]} 31... Qxf3 {[%clk 0:01:33.8]} 32. gxf3
{[%clk 0:00:45.3]} 32... c4 {[%clk 0:01:11.3]} 33. Be8 {[%clk 0:00:45.1]} 33...
c3 {[%clk 0:01:11.3]} 34. Bxf7+ {[%clk 0:00:43.2]} 34... Kh8 {[%clk 0:01:11.8]}
35. Bg6 {[%clk 0:00:20.4]} 35... c2 {[%clk 0:01:10.7]} 36. Bxc2 {[%clk 0:00:18]}
36... Rxc2 {[%clk 0:01:10.4]} 37. Rf7 {[%clk 0:00:15.9]} 37... Bg7 {[%clk
0:01:08.3]} 38. Rf5 {[%clk 0:00:10]} 38... Bd4+ {[%clk 0:01:04.3]} 39. Kf1
{[%clk 0:00:10.2]} 39... Kg7 {[%clk 0:01:00.6]} 40. f4 {[%clk 0:00:10.4]} 40...
gxf4 {[%clk 0:01:01]} 41. Rxf4 {[%clk 0:00:08.5]} 41... Be5 {[%clk 0:01:01.2]}
42. Rg4+ {[%clk 0:00:08.6]} 42... Kf7 {[%clk 0:01:01.4]} 43. Rh4 {[%clk
0:00:08.5]} 43... Kg6 {[%clk 0:00:59.5]} 44. Rg4+ {[%clk 0:00:08.8]} 44... Kf5
{[%clk 0:00:53.4]} 45. Rh4 {[%clk 0:00:08.9]} 45... Bxg3 {[%clk 0:00:53.6]} 46.
Rxh6 {[%clk 0:00:09]} 46... Be5 {[%clk 0:00:52.2]} 47. h4 {[%clk 0:00:08.5]}
47... Rh2 {[%clk 0:00:52.5]} 48. h5 {[%clk 0:00:08.5]} 48... Kg5 {[%clk
0:00:51.4]} 49. Rh7 {[%clk 0:00:08.7]} 49... Rxh5 {[%clk 0:00:48.4]} 50. Ra7
{[%clk 0:00:07.1]} 50... Kf5 {[%clk 0:00:48.2]} 51. Ke2 {[%clk 0:00:06.6]} 51...
Ke4 {[%clk 0:00:48.7]} 52. Ra4+ {[%clk 0:00:06.3]} 52... Bd4 {[%clk 0:00:48.5]}
53. Ra3 {[%clk 0:00:06.1]} 53... Rxd5 {[%clk 0:00:46.6]} 54. Rh3 {[%clk
0:00:05.5]} 54... Rf5 {[%clk 0:00:44.3]} 55. Rg3 {[%clk 0:00:05.3]} 55... Rf4
{[%clk 0:00:43.9]} 56. Kd1 {[%clk 0:00:04.8]} 56... Be3 {[%clk 0:00:43.3]} 57.
Rg6 {[%clk 0:00:04.3]} 57... Bd4 {[%clk 0:00:42]} 58. Rg2 {[%clk 0:00:04.4]}
58... Rf3 {[%clk 0:00:39.5]} 59. Rg4+ {[%clk 0:00:04.1]} 59... Kd3 {[%clk
0:00:39.3]} 60. Ke1 {[%clk 0:00:02]} 60... Bc3+ {[%clk 0:00:37.2]} 61. Kd1
{[%clk 0:00:01.6]} 61... Rf1# {[%clk 0:00:37.9]} 0-1

[Event "Early-Titled-Tuesday-Blitz-May-28-2024"]
[Site "Chess.com"]
[Date "2024.05.28"]
[Round "10"]
[White "youngKID"]
[Black "OparinGrigoriy"]
[Result "1-0"]
[WhiteElo "2907"]
[BlackElo "3036"]
[TimeControl "180+1"]
[EndTime "9:58:27 PDT"]
[Termination "youngKID won on time"]

1. d4 {[%clk 0:03:00]} 1... Nf6 {[%clk 0:02:59.8]} 2. Nf3 {[%clk 0:03:00.6]}
2... e6 {[%clk 0:02:59.6]} 3. Bf4 {[%clk 0:03:00.8]} 3... d5 {[%clk 0:02:59.2]}
4. e3 {[%clk 0:03:00.2]} 4... c5 {[%clk 0:02:59.8]} 5. Nbd2 {[%clk 0:03:00]}
5... Nc6 {[%clk 0:03:00.4]} 6. c3 {[%clk 0:03:00.1]} 6... cxd4 {[%clk 0:03:01]}
7. exd4 {[%clk 0:03:00.4]} 7... Nh5 {[%clk 0:03:01.3]} 8. Be3 {[%clk 0:02:58.2]}
8... Bd6 {[%clk 0:03:01.5]} 9. Bd3 {[%clk 0:02:58.1]} 9... Nf4 {[%clk 0:03:02]}
10. Bxf4 {[%clk 0:02:58.2]} 10... Bxf4 {[%clk 0:03:02.9]} 11. O-O {[%clk
0:02:58.9]} 11... O-O {[%clk 0:03:03.3]} 12. Re1 {[%clk 0:02:58.5]} 12... g6
{[%clk 0:03:00.4]} 13. Nf1 {[%clk 0:02:53.3]} 13... Kh8 {[%clk 0:02:58.5]} 14.
g3 {[%clk 0:02:46.5]} 14... Bh6 {[%clk 0:02:58.5]} 15. Ne3 {[%clk 0:02:47]}
15... Bg7 {[%clk 0:02:56]} 16. h4 {[%clk 0:02:31]} 16... f6 {[%clk 0:02:54.3]}
17. c4 {[%clk 0:02:20.8]} 17... dxc4 {[%clk 0:02:40.6]} 18. Bxc4 {[%clk
0:02:19.8]} 18... Qd6 {[%clk 0:02:32.8]} 19. Ng2 {[%clk 0:02:12.8]} 19... Bd7
{[%clk 0:02:30.6]} 20. Rc1 {[%clk 0:02:02]} 20... Rae8 {[%clk 0:02:28.1]} 21.
Rc2 {[%clk 0:01:51]} 21... Na5 {[%clk 0:02:18.9]} 22. Bd3 {[%clk 0:01:48.3]}
22... Rc8 {[%clk 0:01:58.2]} 23. Rce2 {[%clk 0:01:45.7]} 23... Nc6 {[%clk
0:01:51.6]} 24. Nf4 {[%clk 0:01:29]} 24... Nxd4 {[%clk 0:01:43.7]} 25. Nxd4
{[%clk 0:01:28.5]} 25... Qxd4 {[%clk 0:01:44.6]} 26. Bxg6 {[%clk 0:01:02.9]}
26... Qxd1 {[%clk 0:01:44.4]} 27. Rxd1 {[%clk 0:01:03.3]} 27... Ba4 {[%clk
0:00:35]} 28. b3 {[%clk 0:01:02.8]} 28... e5 {[%clk 0:00:35.4]} 29. bxa4 {[%clk
0:00:27.9]} 29... exf4 {[%clk 0:00:35.1]} 30. Bf5 {[%clk 0:00:21.7]} 30... Rcd8
{[%clk 0:00:34.7]} 31. Rxd8 {[%clk 0:00:19.4]} 31... Rxd8 {[%clk 0:00:35.6]} 32.
Re7 {[%clk 0:00:20.1]} 32... fxg3 {[%clk 0:00:35.6]} 33. fxg3 {[%clk 0:00:20.2]}
33... Kg8 {[%clk 0:00:06.1]} 34. Rxb7 {[%clk 0:00:18.6]} 34... Bf8 {[%clk
0:00:01.9]} 35. Bxh7+ {[%clk 0:00:16.4]} 35... Kh8 {[%clk 0:00:02.3]} 36. Bf5
{[%clk 0:00:12.3]} 36... Rd2 {[%clk 0:00:02.5]} 37. Be6 {[%clk 0:00:04.4]} 37...
Bc5+ {[%clk 0:00:02.3]} 38. Kh1 {[%clk 0:00:03.8]} 38... Re2 {[%clk 0:00:01]}
39. Bc4 {[%clk 0:00:03.5]} 1-0

[Event "Early-Titled-Tuesday-Blitz-May-28-2024"]
[Site "Chess.com"]
[Date "2024.05.28"]
[Round "10"]
[White "AryanTari"]
[Black "js20000"]
[Result "1-0"]
[WhiteElo "3034"]
[BlackElo "2713"]
[TimeControl "180+1"]
[EndTime "9:58:28 PDT"]
[Termination "AryanTari won by resignation"]

1. c4 {[%clk 0:03:00.9]} 1... Nf6 {[%clk 0:02:55.3]} 2. Nc3 {[%clk 0:03:00.2]}
2... d6 {[%clk 0:02:55.4]} 3. d4 {[%clk 0:02:56.6]} 3... e5 {[%clk 0:02:53]} 4.
Nf3 {[%clk 0:02:56.1]} 4... Nc6 {[%clk 0:02:51.1]} 5. Bg5 {[%clk 0:02:39.4]}
5... Be7 {[%clk 0:02:43.7]} 6. e3 {[%clk 0:02:39.3]} 6... Bg4 {[%clk 0:02:41.5]}
7. Be2 {[%clk 0:02:21.1]} 7... Nd7 {[%clk 0:01:51.1]} 8. Bxe7 {[%clk 0:02:16]}
8... Qxe7 {[%clk 0:01:29.2]} 9. Nxe5 {[%clk 0:01:41.7]} 9... Ndxe5 {[%clk
0:00:49]} 10. Bxg4 {[%clk 0:01:40.7]} 10... Nxc4 {[%clk 0:00:47.1]} 11. Nd5
{[%clk 0:01:17.3]} 11... Qd8 {[%clk 0:00:45.8]} 12. Qc2 {[%clk 0:01:14.3]} 12...
Nb6 {[%clk 0:00:42.5]} 13. Qe4+ {[%clk 0:01:13.4]} 13... Kf8 {[%clk 0:00:36]}
14. Nc3 {[%clk 0:01:09]} 14... g6 {[%clk 0:00:35.1]} 15. O-O {[%clk 0:01:03.1]}
15... Kg7 {[%clk 0:00:31.4]} 16. Be2 {[%clk 0:01:02.1]} 16... d5 {[%clk
0:00:30.9]} 17. Qc2 {[%clk 0:01:00.4]} 17... Ne7 {[%clk 0:00:30.8]} 18. Bf3
{[%clk 0:00:57.7]} 18... c6 {[%clk 0:00:31.2]} 19. a4 {[%clk 0:00:57.8]} 19...
a5 {[%clk 0:00:30.6]} 20. Qb3 {[%clk 0:00:56.8]} 20... Rb8 {[%clk 0:00:26.9]}
21. Rad1 {[%clk 0:00:53.1]} 21... Nbc8 {[%clk 0:00:23.3]} 22. e4 {[%clk
0:00:49.2]} 22... dxe4 {[%clk 0:00:23.5]} 23. Bxe4 {[%clk 0:00:49.8]} 23... Nd6
{[%clk 0:00:23.4]} 24. Bf3 {[%clk 0:00:49.1]} 24... Re8 {[%clk 0:00:19.3]} 25.
d5 {[%clk 0:00:48.1]} 25... c5 {[%clk 0:00:19.8]} 26. Nb5 {[%clk 0:00:43.3]}
26... Nef5 {[%clk 0:00:18.4]} 27. Nxd6 {[%clk 0:00:41.3]} 27... Qxd6 {[%clk
0:00:17.1]} 28. Qc3+ {[%clk 0:00:41.3]} 28... Nd4 {[%clk 0:00:17]} 29. Qxa5
{[%clk 0:00:36.3]} 29... Re5 {[%clk 0:00:11.7]} 30. Qc3 {[%clk 0:00:35.1]} 30...
Rd8 {[%clk 0:00:08.1]} 31. Rd3 {[%clk 0:00:16.5]} 31... Kg8 {[%clk 0:00:05.8]}
32. Rfd1 {[%clk 0:00:16.2]} 32... Rxd5 {[%clk 0:00:06.2]} 33. Kf1 {[%clk
0:00:09.1]} 33... Re5 {[%clk 0:00:05.8]} 34. b4 {[%clk 0:00:07.3]} 34... b6
{[%clk 0:00:06.2]} 35. a5 {[%clk 0:00:07.6]} 35... Qd7 {[%clk 0:00:02.7]} 36.
axb6 {[%clk 0:00:07.2]} 36... Qb5 {[%clk 0:00:03.6]} 37. bxc5 {[%clk 0:00:03.7]}
37... Rxc5 {[%clk 0:00:04.5]} 38. Qd2 {[%clk 0:00:02.6]} 38... Rc2 {[%clk
0:00:03]} 39. Qe3 {[%clk 0:00:01.5]} 39... Nf5 {[%clk 0:00:03.3]} 40. Qe4 {[%clk
0:00:01]} 40... Rxd3 {[%clk 0:00:03.5]} 41. Qxd3 {[%clk 0:00:01.9]} 41... Qxd3+
{[%clk 0:00:03.1]} 42. Rxd3 {[%clk 0:00:02.8]} 42... Rb2 {[%clk 0:00:04]} 43.
Rd8+ {[%clk 0:00:02.6]} 43... Kg7 {[%clk 0:00:04.2]} 44. b7 {[%clk 0:00:03.5]}
44... Nd4 {[%clk 0:00:02]} 45. Rxd4 {[%clk 0:00:02.8]} 1-0

[Event "Early-Titled-Tuesday-Blitz-May-28-2024"]
[Site "Chess.com"]
[Date "2024.05.28"]
[Round "10"]
[White "SoyuzTM4"]
[Black "Shivananda1964"]
[Result "0-1"]
[WhiteElo "2218"]
[BlackElo "2392"]
[TimeControl "180+1"]
[EndTime "9:58:28 PDT"]
[Termination "Shivananda1964 won by checkmate"]

1. e4 {[%clk 0:03:00.9]} 1... c5 {[%clk 0:02:55.2]} 2. Nf3 {[%clk 0:02:59.5]}
2... d6 {[%clk 0:02:53.4]} 3. d4 {[%clk 0:02:59]} 3... cxd4 {[%clk 0:02:53.4]}
4. c3 {[%clk 0:02:58.8]} 4... dxc3 {[%clk 0:02:51.6]} 5. Nxc3 {[%clk 0:02:58.7]}
5... Nf6 {[%clk 0:02:49.7]} 6. Bc4 {[%clk 0:02:57.9]} 6... e6 {[%clk 0:02:48.8]}
7. O-O {[%clk 0:02:52.1]} 7... Be7 {[%clk 0:02:48.9]} 8. Qe2 {[%clk 0:02:51.9]}
8... O-O {[%clk 0:02:47.4]} 9. Rd1 {[%clk 0:02:52.1]} 9... Nbd7 {[%clk
0:02:39.6]} 10. Bf4 {[%clk 0:02:44.5]} 10... Ne8 {[%clk 0:02:01.8]} 11. Rac1
{[%clk 0:02:41.5]} 11... a6 {[%clk 0:02:00.9]} 12. a4 {[%clk 0:02:40.6]} 12...
Qa5 {[%clk 0:01:55.6]} 13. h3 {[%clk 0:02:33.5]} 13... Ne5 {[%clk 0:01:50.1]}
14. Ba2 {[%clk 0:02:20.8]} 14... Bf6 {[%clk 0:01:45.6]} 15. Nd4 {[%clk
0:02:17.1]} 15... Bd7 {[%clk 0:01:43.6]} 16. Be3 {[%clk 0:02:12.2]} 16... Rc8
{[%clk 0:01:41.7]} 17. Nb3 {[%clk 0:01:58.3]} 17... Qd8 {[%clk 0:01:33.5]} 18.
a5 {[%clk 0:01:58.1]} 18... Nc4 {[%clk 0:01:05.4]} 19. Bd4 {[%clk 0:01:57.4]}
19... Nxa5 {[%clk 0:00:58.9]} 20. Bxf6 {[%clk 0:01:51.9]} 20... gxf6 {[%clk
0:00:57.5]} 21. Rd3 {[%clk 0:01:33.1]} 21... Kh8 {[%clk 0:00:55.5]} 22. Nd4
{[%clk 0:01:30.4]} 22... Nc4 {[%clk 0:00:50.6]} 23. Rg3 {[%clk 0:01:23.9]} 23...
Qb6 {[%clk 0:00:46.1]} 24. Nb3 {[%clk 0:01:04.9]} 24... Ne5 {[%clk 0:00:28.5]}
25. Kh1 {[%clk 0:01:03.6]} 25... Bb5 {[%clk 0:00:23.9]} 26. Nxb5 {[%clk
0:00:46.7]} 26... Rxc1+ {[%clk 0:00:19.4]} 27. Nxc1 {[%clk 0:00:46.1]} 27...
Qxb5 {[%clk 0:00:18.8]} 28. Qxb5 {[%clk 0:00:45.7]} 28... axb5 {[%clk
0:00:18.8]} 29. Nb3 {[%clk 0:00:36.3]} 29... Nc7 {[%clk 0:00:18.4]} 30. Nd4
{[%clk 0:00:35.8]} 30... Nc6 {[%clk 0:00:17.8]} 31. Rc3 {[%clk 0:00:30.5]} 31...
Nxd4 {[%clk 0:00:15.1]} 32. Rxc7 {[%clk 0:00:30.3]} 32... Kg7 {[%clk 0:00:12.3]}
33. Kh2 {[%clk 0:00:19.7]} 33... Ra8 {[%clk 0:00:12]} 34. Bb1 {[%clk 0:00:19.3]}
34... Ra1 {[%clk 0:00:12.6]} 35. Bd3 {[%clk 0:00:19]} 35... Rd1 {[%clk
0:00:12.7]} 36. Bxb5 {[%clk 0:00:11.9]} 36... Nxb5 {[%clk 0:00:12.2]} 37. Rxb7
{[%clk 0:00:12.4]} 37... Nd4 {[%clk 0:00:12.2]} 38. b4 {[%clk 0:00:12]} 38...
Rb1 {[%clk 0:00:10.4]} 39. Rb6 {[%clk 0:00:11.6]} 39... e5 {[%clk 0:00:10]} 40.
Rxd6 {[%clk 0:00:10.8]} 40... Rxb4 {[%clk 0:00:09.3]} 41. f3 {[%clk 0:00:11.4]}
41... Rb2 {[%clk 0:00:08.2]} 42. Kg3 {[%clk 0:00:11.5]} 42... Ne2+ {[%clk
0:00:08.5]} 43. Kf2 {[%clk 0:00:10.4]} 43... Nf4+ {[%clk 0:00:08.6]} 44. Ke3
{[%clk 0:00:10.5]} 44... Re2# {[%clk 0:00:07.8]} 0-1

[Event "Early-Titled-Tuesday-Blitz-May-28-2024"]
[Site "Chess.com"]
[Date "2024.05.28"]
[Round "10"]
[White "karinachess1"]
[Black "FlemingA"]
[Result "1-0"]
[WhiteElo "2604"]
[BlackElo "2472"]
[TimeControl "180+1"]
[EndTime "9:58:34 PDT"]
[Termination "karinachess1 won by checkmate"]

1. d4 {[%clk 0:03:00.9]} 1... g6 {[%clk 0:02:50.5]} 2. e4 {[%clk 0:02:59.1]}
2... Bg7 {[%clk 0:02:50.7]} 3. Nc3 {[%clk 0:02:57.5]} 3... c5 {[%clk 0:02:50]}
4. dxc5 {[%clk 0:02:54.3]} 4... Qa5 {[%clk 0:02:47.2]} 5. Nf3 {[%clk 0:02:54.6]}
5... Qxc5 {[%clk 0:02:45]} 6. Be3 {[%clk 0:02:54.8]} 6... Qa5 {[%clk 0:02:42.2]}
7. Bd3 {[%clk 0:02:53.1]} 7... a6 {[%clk 0:02:39.8]} 8. O-O {[%clk 0:02:53]}
8... d6 {[%clk 0:02:40.3]} 9. Nd5 {[%clk 0:02:52.5]} 9... Nd7 {[%clk 0:02:34.6]}
10. c3 {[%clk 0:02:21.9]} 10... Ngf6 {[%clk 0:02:30.5]} 11. Bb6 {[%clk
0:02:13.4]} 11... Nxb6 {[%clk 0:02:28.4]} 12. b4 {[%clk 0:02:13.3]} 12... Qa4
{[%clk 0:02:10.5]} 13. Nxb6 {[%clk 0:02:13.4]} 13... Qxd1 {[%clk 0:02:10.7]} 14.
Raxd1 {[%clk 0:01:59.3]} 14... Rb8 {[%clk 0:02:11]} 15. e5 {[%clk 0:01:59.4]}
15... Nd7 {[%clk 0:01:48.5]} 16. Nxc8 {[%clk 0:01:45.1]} 16... Rxc8 {[%clk
0:01:48.7]} 17. exd6 {[%clk 0:01:46]} 17... Bxc3 {[%clk 0:01:23.3]} 18. b5
{[%clk 0:01:38]} 18... a5 {[%clk 0:01:08.3]} 19. dxe7 {[%clk 0:01:33.5]} 19...
Kxe7 {[%clk 0:01:05]} 20. Be4 {[%clk 0:01:29.7]} 20... Rc7 {[%clk 0:00:55.4]}
21. Rc1 {[%clk 0:01:17.6]} 21... Rhc8 {[%clk 0:00:54.2]} 22. h4 {[%clk
0:01:10.1]} 22... Bb4 {[%clk 0:00:50.8]} 23. Rxc7 {[%clk 0:01:08]} 23... Rxc7
{[%clk 0:00:51.7]} 24. Rd1 {[%clk 0:01:06.6]} 24... Nc5 {[%clk 0:00:37]} 25. Bc2
{[%clk 0:01:00.4]} 25... Rd7 {[%clk 0:00:37.1]} 26. Rxd7+ {[%clk 0:00:56.1]}
26... Nxd7 {[%clk 0:00:34.5]} 27. Kf1 {[%clk 0:00:53.2]} 27... h6 {[%clk
0:00:31.3]} 28. Bb3 {[%clk 0:00:50.3]} 28... f6 {[%clk 0:00:29.5]} 29. Ke2
{[%clk 0:00:45.4]} 29... Kd6 {[%clk 0:00:23.6]} 30. Bf7 {[%clk 0:00:35.4]} 30...
g5 {[%clk 0:00:23.2]} 31. h5 {[%clk 0:00:35.1]} 31... Kc5 {[%clk 0:00:21.5]} 32.
Kd3 {[%clk 0:00:28.4]} 32... Kxb5 {[%clk 0:00:15.7]} 33. Be8 {[%clk 0:00:28.6]}
33... Kc6 {[%clk 0:00:14.1]} 34. Nd4+ {[%clk 0:00:26.8]} 34... Kc7 {[%clk
0:00:12.2]} 35. Ke4 {[%clk 0:00:17.8]} 35... Nc5+ {[%clk 0:00:06.3]} 36. Kf5
{[%clk 0:00:16.2]} 36... Bc3 {[%clk 0:00:05.2]} 37. Nb5+ {[%clk 0:00:16.5]}
37... Kd8 {[%clk 0:00:04.6]} 38. Nxc3 {[%clk 0:00:15.7]} 38... Kxe8 {[%clk
0:00:05.3]} 39. Kxf6 {[%clk 0:00:13.1]} 39... Nd3 {[%clk 0:00:03.2]} 40. Ne4
{[%clk 0:00:12]} 40... b5 {[%clk 0:00:02.6]} 41. Nd6+ {[%clk 0:00:11.9]} 41...
Kd7 {[%clk 0:00:02.6]} 42. Nxb5 {[%clk 0:00:12.5]} 42... Nxf2 {[%clk 0:00:03.2]}
43. Kg6 {[%clk 0:00:11.3]} 43... Ng4 {[%clk 0:00:03]} 44. Nd4 {[%clk 0:00:07.6]}
44... Kd6 {[%clk 0:00:02.2]} 45. Nf5+ {[%clk 0:00:07.9]} 45... Ke5 {[%clk
0:00:02.7]} 46. Nxh6 {[%clk 0:00:08.8]} 46... Ne3 {[%clk 0:00:03]} 47. Nf7+
{[%clk 0:00:08.4]} 47... Kf4 {[%clk 0:00:02.5]} 48. h6 {[%clk 0:00:08.9]} 48...
Ng4 {[%clk 0:00:01.4]} 49. h7 {[%clk 0:00:08.7]} 49... Ne5+ {[%clk 0:00:01.5]}
50. Nxe5 {[%clk 0:00:09.2]} 50... Kxe5 {[%clk 0:00:02.4]} 51. h8=Q+ {[%clk
0:00:09.9]} 51... Kf4 {[%clk 0:00:03.2]} 52. Qf6+ {[%clk 0:00:10.4]} 52... Kg4
{[%clk 0:00:04.1]} 53. Qxg5# {[%clk 0:00:11.3]} 1-0